fUSD/lending_fUSD_20250422
["ID","MTS","AMOUNT","RATE_DAILY","PERIOD"]
[358617481,1745312159592,-173.0,0.00065,45]
[358617482,1745312159630,-267.0634794,0.00065,90]
[358617483,1745312159668,-170.83562107,0.00065,120]
[358617484,1745312159706,-1484.0,0.00065007,60]
[358617485,1745312159746,-900.0,0.00065212,120]
[358617486,1745312159784,-2100.0,0.00065304,120]
[358617487,1745312159823,-30383.71386623,0.0006539,30]
[358617488,1745312159864,-2327752.83288156,0.000654,120]
[358617489,1745312162659,-675.28,0.00054794,120]
[358617490,1745312162703,-675.28,0.00055068,120]
[358617491,1745312162746,-675.28,0.00055342,120]
[358617492,1745312162786,-675.28,0.00055616,120]
[358617493,1745312162828,-675.28,0.0005589,120]
[358617494,1745312162876,-675.28,0.00056164,120]
[358617495,1745312162917,-675.28,0.00056438,120]
[358617496,1745312162974,-1000000.0,0.00065,120]
[358617497,1745312163014,-3995273.04,0.000654,120]
[358617498,1745312170690,-11074.22,0.00054794,120]
[358617499,1745312170730,-1000.0,0.00054794,120]
[358617500,1745312170771,-11074.22,0.00055068,120]
[358617501,1745312170812,-1000.0,0.00055068,120]
[358617502,1745312170853,-11074.22,0.00055342,120]
[358617503,1745312170893,-11074.22,0.00055616,120]
[358617504,1745312170933,-11074.22,0.0005589,120]
[358617505,1745312170983,-11074.22,0.00056164,120]
[358617506,1745312171021,-11074.22,0.00056438,120]
[358617507,1745312171061,-675.28,0.00056712,120]
[358617508,1745312171098,-11074.22,0.00056712,120]
[358617509,1745312171140,-675.28,0.00056986,120]
[358617510,1745312171177,-11074.22,0.00056986,120]
[358617511,1745312171216,-675.28,0.0005726,120]
[358617512,1745312171254,-11074.22,0.0005726,120]
[358617513,1745312171291,-675.28,0.00057534,120]
[358617514,1745312171522,-11074.22,0.00057534,120]
[358617515,1745312171581,-675.28,0.00057808,120]
[358617516,1745312171622,-11074.22,0.00057808,120]
[358617517,1745312171662,-675.28,0.00058082,120]
[358617518,1745312171700,-11074.22,0.00058082,120]
[358617519,1745312171739,-675.28,0.00058356,120]
[358617520,1745312171786,-11074.22,0.00058356,120]
[358617521,1745312171824,-675.28,0.0005863,120]
[358617522,1745312171863,-11074.22,0.0005863,120]
[358617523,1745312171902,-675.28,0.00058904,120]
[358617524,1745312171940,-11074.22,0.00058904,120]
[358617525,1745312171981,-675.28,0.00059178,120]
[358617526,1745312172023,-11074.22,0.00059178,120]
[358617527,1745312172065,-675.28,0.00059452,120]
[358617528,1745312172106,-11074.22,0.00059452,120]
[358617529,1745312172150,-675.28,0.00059726,120]
[358617530,1745312172192,-11074.22,0.00059726,120]
[358617531,1745312172240,-675.28,0.00059999,120]
[358617532,1745312172282,-11074.22,0.00059999,120]
[358617533,1745312172322,-675.28,0.00060273,120]
[358617534,1745312172361,-11074.22,0.00060273,120]
[358617535,1745312172405,-675.28,0.00060547,120]
[358617536,1745312172444,-11074.22,0.00060547,120]
[358617537,1745312172486,-675.28,0.00060821,120]
[358617538,1745312172525,-11074.22,0.00060821,120]
[358617539,1745312172567,-675.48568633,0.00061095,120]
[358617540,1745312172604,-11074.26919545,0.00061095,120]
[358617541,1745312172648,-1000000.0,0.00065,120]
[358617542,1745312172688,-3720738.70511822,0.000654,120]
[358617543,1745312177000,-1000.0,0.00055342,120]
[358617544,1745312177041,-1000.0,0.00055616,120]
[358617545,1745312177081,-1000.0,0.0005589,120]
[358617546,1745312177121,-1000.0,0.00056164,120]
[358617547,1745312177160,-1000.0,0.00056438,120]
[358617548,1745312177199,-1000.0,0.00056712,120]
[358617549,1745312177237,-1000.0,0.00056986,120]
[358617550,1745312177276,-1000.0,0.0005726,120]
[358617551,1745312177314,-1000.0,0.00057534,120]
[358617552,1745312177352,-1000.0,0.00057808,120]
[358617553,1745312177393,-1000.0,0.00058082,120]
[358617554,1745312177449,-1000.0,0.00058356,120]
[358617555,1745312177488,-1000.0,0.0005863,120]
[358617556,1745312177526,-837.4867553,0.00058904,120]
[358617557,1745312177575,-1267.44303246,0.000645,120]
[358617558,1745312177614,-3214002.87200022,0.000654,120]
[358617559,1745312177654,-900.0,0.00065404,120]
[358617560,1745312177692,-200.0,0.0006548,30]
[358617561,1745312177733,-3096.34458898,0.00065484,120]
[358617562,1745312177771,-781.91070246,0.00065592,120]
[358617563,1745312177809,-894.01737699,0.00065644,120]
[358617564,1745312177848,-1484.0,0.0006567,60]
[358617565,1745312177889,-600.0,0.00065694,120]
[358617566,1745312177930,-900.0,0.00065712,120]
[358617567,1745312177971,-200000.0,0.0006572,120]
[358617568,1745312178014,-600.0,0.00065725,120]
[358617569,1745312178056,-1546.80332684,0.00065728,120]
[358617570,1745312178098,-306.0,0.00065753,60]
[358617571,1745312178141,-600.0,0.00065753,120]
[358617572,1745312178181,-600.0,0.00065753,120]
[358617573,1745312178220,-600.0,0.00065753,120]
[358617574,1745312178260,-600.0,0.00065753,120]
[358617575,1745312178298,-600.0,0.00065753,120]
[358617576,1745312178336,-600.0,0.00065753,120]
[358617577,1745312178374,-600.0,0.00065753,120]
[358617578,1745312178413,-600.0,0.00065753,120]
[358617579,1745312178453,-600.1269397,0.00065929,120]
[358617580,1745312178493,-16115.876002,0.00065999,30]
[358617581,1745312178535,-50000.0,0.00066,66]
[358617582,1745312178577,-200.0,0.00066,120]
[358617583,1745312178616,-500.0,0.00066,120]
[358617584,1745312178657,-2002.0,0.00066,120]
[358617585,1745312178699,-180.0,0.00066,120]
[358617586,1745312178738,-250.0,0.00066,120]
[358617587,1745312178778,-6514.33909327,0.00066,30]
[358617588,1745312178820,-10000.0,0.00066,30]
[358617589,1745312178864,-149981.03059009,0.00066,30]
[358617590,1745312178907,-300.0,0.00066,120]
[358617591,1745312178947,-570000.0,0.00066,120]
[358617592,1745312178989,-25000.0,0.00066,120]
[358617593,1745312179028,-7109.0,0.00066,120]
[358617594,1745312179070,-170.83562107,0.00066,120]
[358617595,1745312179114,-150.0,0.00066062,120]
[358617596,1745312179159,-1484.0,0.00066333,60]
[358617597,1745312179206,-529.61266301,0.00066333,60]
[358617598,1745312179248,-1071.0,0.00066452,120]
[358617599,1745312179457,-200.0,0.0006685,30]
[358617600,1745312179501,-1484.0,0.00066997,60]
[358617601,1745312179547,-50000.0,0.00067,67]
[358617602,1745312179589,-500.0,0.00067,120]
[358617603,1745312179632,-250.0,0.00067,120]
[358617604,1745312179679,-25000.0,0.00067,120]
[358617605,1745312179722,-6006.77251471,0.00067,120]
[358617606,1745312179763,-170.83562107,0.00067,120]
[358617607,1745312179803,-151.0,0.00067178,120]
[358617608,1745312179842,-1484.0,0.0006766,60]
[358617609,1745312179884,-150.29283074,0.00067827,120]
[358617610,1745312179925,-1000.0,0.00067999,120]
[358617611,1745312179965,-1000.0,0.00067999,120]
[358617612,1745312180006,-50000.0,0.00068,68]
[358617613,1745312180045,-200.0,0.00068,120]
[358617614,1745312180084,-500.0,0.00068,120]
[358617615,1745312180124,-300.0,0.00068,120]
[358617616,1745312180161,-250.0,0.00068,120]
[358617617,1745312180198,-200.0,0.00068,120]
[358617618,1745312180234,-250.0,0.00068,120]
[358617619,1745312180270,-25000.0,0.00068,120]
[358617620,1745312180310,-548528.40034109,0.00068,120]
[358617621,1745312184257,-3989.15,0.00054794,120]
[358617622,1745312184308,-3989.15,0.00055068,120]
[358617623,1745312184365,-365.66797018,0.00062586,120]
[358617624,1745312184410,-600.0,0.00065753,120]
[358617625,1745312184452,-600.0,0.00065753,120]
[358617626,1745312184493,-600.0,0.00065753,120]
[358617627,1745312184533,-600.0,0.00065753,120]
[358617628,1745312184575,-451471.59965891,0.00068,120]
[358617629,1745312184618,-1000000.0,0.00068,120]
[358617630,1745312184662,-1000000.0,0.00068,120]
[358617631,1745312184703,-1000000.0,0.00068,120]
[358617632,1745312184749,-1000000.0,0.00068,120]
[358617633,1745312184795,-537784.43237091,0.00068,120]
[358617634,1745312439169,-162.06658891,0.00039157,54]
[358617635,1745312439217,-63846.29,0.000463,60]
[358617636,1745312439267,-63846.29,0.000505,60]
[358617637,1745312439313,-500.0,0.00054794,120]
[358617638,1745312439358,-500.0,0.00054794,120]
[358617639,1745312439402,-500.0,0.00054794,120]
[358617640,1745312439446,-500.0,0.00054794,120]
[358617641,1745312439487,-500.0,0.00054794,120]
[358617642,1745312439529,-500.0,0.00054794,120]
[358617643,1745312439568,-500.0,0.00054794,120]
[358617644,1745312439607,-500.0,0.00054794,120]
[358617645,1745312439648,-500.0,0.00054794,120]
[358617646,1745312439686,-19901.43,0.00054794,120]
[358617647,1745312439725,-1084.97,0.00054794,120]
[358617648,1745312439763,-3656.72,0.00054794,120]
[358617649,1745312439802,-1331.19,0.00054794,120]
[358617650,1745312439840,-500.0,0.00054794,120]
[358617651,1745312439878,-4000.0,0.00054795,60]
[358617652,1745312439919,-500.0,0.00055068,120]
[358617653,1745312439964,-500.0,0.00055068,120]
[358617654,1745312440002,-500.0,0.00055068,120]
[358617655,1745312440043,-500.0,0.00055068,120]
[358617656,1745312440083,-500.0,0.00055068,120]
[358617657,1745312440123,-500.0,0.00055068,120]
[358617658,1745312440161,-500.0,0.00055068,120]
[358617659,1745312440199,-500.0,0.00055068,120]
[358617660,1745312440237,-500.0,0.00055068,120]
[358617661,1745312440273,-19901.43,0.00055068,120]
[358617662,1745312440309,-3656.72,0.00055068,120]
[358617663,1745312440347,-1331.19,0.00055068,120]
[358617664,1745312440386,-500.0,0.00055068,120]
[358617665,1745312440427,-500.0,0.00055342,120]
[358617666,1745312440468,-500.0,0.00055342,120]
[358617667,1745312440507,-500.0,0.00055342,120]
[358617668,1745312440549,-500.0,0.00055342,120]
[358617669,1745312440588,-500.0,0.00055342,120]
[358617670,1745312440628,-500.0,0.00055342,120]
[358617671,1745312440666,-500.0,0.00055342,120]
[358617672,1745312440705,-500.0,0.00055342,120]
[358617673,1745312440744,-617.20125972,0.00055342,120]
[358617674,1745312440786,-19901.43,0.00055342,120]
[358617675,1745312440825,-3656.72,0.00055342,120]
[358617676,1745312440864,-1331.19,0.00055342,120]
[358617677,1745312440904,-500.0,0.00055342,120]
[358617678,1745312440945,-63846.29,0.000554,60]
[358617679,1745312440984,-500.0,0.00055616,120]
[358617680,1745312441032,-500.0,0.00055616,120]
[358617681,1745312441073,-500.0,0.00055616,120]
[358617682,1745312441112,-500.0,0.00055616,120]
[358617683,1745312441154,-500.0,0.00055616,120]
[358617684,1745312441197,-500.0,0.00055616,120]
[358617685,1745312441237,-500.0,0.00055616,120]
[358617686,1745312441280,-500.0,0.00055616,120]
[358617687,1745312441322,-19901.43,0.00055616,120]
[358617688,1745312441366,-1084.97,0.00055616,120]
[358617689,1745312441410,-3656.72,0.00055616,120]
[358617690,1745312441456,-1331.19,0.00055616,120]
[358617691,1745312441498,-500.0,0.00055616,120]
[358617692,1745312441538,-500.0,0.0005589,120]
[358617693,1745312441578,-500.0,0.0005589,120]
[358617694,1745312441615,-500.0,0.0005589,120]
[358617695,1745312441653,-500.0,0.0005589,120]
[358617696,1745312441692,-500.0,0.0005589,120]
[358617697,1745312441733,-500.0,0.0005589,120]
[358617698,1745312441774,-500.0,0.0005589,120]
[358617699,1745312441813,-599.35785156,0.0005589,120]
[358617700,1745312441853,-19901.43,0.0005589,120]
[358617701,1745312441893,-3656.72,0.0005589,120]
[358617702,1745312441934,-1331.19,0.0005589,120]
[358617703,1745312442078,-500.0,0.0005589,120]
[358617704,1745312442123,-500.0,0.00056164,120]
[358617705,1745312442167,-500.0,0.00056164,120]
[358617706,1745312442210,-500.0,0.00056164,120]
[358617707,1745312442250,-338.62163668,0.00056164,120]
[358617708,1745312442289,-164.04912167,0.00056164,120]
[358617709,1745312442331,-500.0,0.00056164,120]
[358617710,1745312442370,-500.0,0.00056164,120]
[358617711,1745312442409,-19901.43,0.00056164,120]
[358617712,1745312442456,-3656.72,0.00056164,120]
[358617713,1745312442505,-1331.19,0.00056164,120]
[358617714,1745312442555,-609.58181016,0.00056164,120]
[358617715,1745312442603,-500.0,0.00056438,120]
[358617716,1745312442647,-500.0,0.00056438,120]
[358617717,1745312442687,-500.00009873,0.00056438,120]
[358617718,1745312442729,-500.0,0.00056438,120]
[358617719,1745312442770,-500.0,0.00056438,120]
[358617720,1745312442808,-19901.43,0.00056438,120]
[358617721,1745312442846,-1084.97,0.00056438,120]
[358617722,1745312442885,-3656.72,0.00056438,120]
[358617723,1745312442923,-1331.19,0.00056438,120]
[358617724,1745312442966,-500.0,0.00056712,120]
[358617725,1745312443007,-500.0,0.00056712,120]
[358617726,1745312443049,-500.0,0.00056712,120]
[358617727,1745312443091,-500.0,0.00056712,120]
[358617728,1745312443133,-19901.43,0.00056712,120]
[358617729,1745312443174,-3656.72,0.00056712,120]
[358617730,1745312443215,-1331.19,0.00056712,120]
[358617731,1745312443255,-500.0,0.00056986,120]
[358617732,1745312443296,-500.0,0.00056986,120]
[358617733,1745312443339,-409.64965315,0.00056986,120]
[358617734,1745312443381,-500.0,0.00056986,120]
[358617735,1745312443421,-19901.43,0.00056986,120]
[358617736,1745312443460,-3656.72,0.00056986,120]
[358617737,1745312443501,-1331.19,0.00056986,120]
[358617738,1745312443543,-500.0,0.0005726,120]
[358617739,1745312443585,-500.0,0.0005726,120]
[358617740,1745312443628,-500.0,0.0005726,120]
[358617741,1745312443669,-19901.43,0.0005726,120]
[358617742,1745312443708,-1084.97,0.0005726,120]
[358617743,1745312443746,-3656.72,0.0005726,120]
[358617744,1745312443784,-1331.19,0.0005726,120]
[358617745,1745312443823,-158.78,0.000574,60]
[358617746,1745312443863,-500.0,0.00057534,120]
[358617747,1745312443912,-500.0,0.00057534,120]
[358617748,1745312443953,-500.0,0.00057534,120]
[358617749,1745312443994,-19901.43,0.00057534,120]
[358617750,1745312444036,-3656.72,0.00057534,120]
[358617751,1745312444078,-1331.19,0.00057534,120]
[358617752,1745312444119,-500.0,0.00057808,120]
[358617753,1745312444160,-500.0,0.00057808,120]
[358617754,1745312444200,-500.0,0.00057808,120]
[358617755,1745312444243,-19901.43,0.00057808,120]
[358617756,1745312444284,-3656.72,0.00057808,120]
[358617757,1745312444326,-1331.19,0.00057808,120]
[358617758,1745312444366,-200.0,0.000579,112]
[358617759,1745312444407,-200.0,0.000579,112]
[358617760,1745312444449,-63846.29,0.000579,60]
[358617761,1745312444489,-14944.45398565,0.00057985,60]
[358617762,1745312444529,-551.56701166,0.00058082,120]
[358617763,1745312444569,-575.873808,0.00058082,120]
[358617764,1745312444612,-500.0,0.00058082,120]
[358617765,1745312444654,-19901.43,0.00058082,120]
[358617766,1745312444695,-1084.97,0.00058082,120]
[358617767,1745312444733,-3656.72,0.00058082,120]
[358617768,1745312444774,-1331.19,0.00058082,120]
[358617769,1745312444816,-500.0,0.00058356,120]
[358617770,1745312444857,-19901.43,0.00058356,120]
[358617771,1745312444902,-3656.72,0.00058356,120]
[358617772,1745312444947,-1331.19,0.00058356,120]
[358617773,1745312444992,-500.0,0.0005863,120]
[358617774,1745312445038,-19901.43,0.0005863,120]
[358617775,1745312445082,-3656.72,0.0005863,120]
[358617776,1745312445124,-1331.19,0.0005863,120]
[358617777,1745312445165,-200.0,0.000589,116]
[358617778,1745312445205,-200.0,0.000589,116]
[358617779,1745312445246,-500.0,0.00058904,120]
[358617780,1745312445286,-19901.43,0.00058904,120]
[358617781,1745312445327,-1084.97,0.00058904,120]
[358617782,1745312445366,-3656.72,0.00058904,120]
[358617783,1745312445405,-1331.19,0.00058904,120]
[358617784,1745312445448,-500.0,0.00059178,120]
[358617785,1745312445487,-19901.43,0.00059178,120]
[358617786,1745312445526,-3656.72,0.00059178,120]
[358617787,1745312445572,-1331.19,0.00059178,120]
[358617788,1745312445616,-500.0,0.00059452,120]
[358617789,1745312445656,-19901.43,0.00059452,120]
[358617790,1745312445699,-3656.72,0.00059452,120]
[358617791,1745312445743,-1331.19,0.00059452,120]
[358617792,1745312445787,-204.92415863,0.00059726,120]
[358617793,1745312445827,-19901.43,0.00059726,120]
[358617794,1745312445872,-1084.97,0.00059726,120]
[358617795,1745312445911,-3656.72,0.00059726,120]
[358617796,1745312445953,-1331.19,0.00059726,120]
[358617797,1745312446104,-200.0,0.000599,120]
[358617798,1745312446152,-200.0,0.000599,120]
[358617799,1745312446192,-19901.43,0.00059999,120]
[358617800,1745312446230,-3656.72,0.00059999,120]
[358617801,1745312446271,-1331.19,0.00059999,120]
[358617802,1745312446313,-1000000.0,0.0006,120]
[358617803,1745312446353,-1000000.0,0.0006,120]
[358617804,1745312446395,-1000000.0,0.0006,120]
[358617805,1745312446438,-175697.12301548,0.0006,120]
[358617806,1745312454520,-500.0,0.00054794,120]
[358617807,1745312454566,-500.0,0.00055068,120]
[358617808,1745312454607,-500.0,0.00055342,120]
[358617809,1745312454648,-500.0,0.00055616,120]
[358617810,1745312454691,-500.0,0.0005589,120]
[358617811,1745312454731,-500.0,0.00056164,120]
[358617812,1745312454769,-500.0,0.00056438,120]
[358617813,1745312454808,-500.0,0.00056712,120]
[358617814,1745312454847,-500.0,0.00056986,120]
[358617815,1745312454887,-500.0,0.0005726,120]
[358617816,1745312454927,-500.0,0.00057534,120]
[358617817,1745312454971,-191.34322126,0.00057808,120]
[358617818,1745312455024,-824302.87698452,0.0006,120]
[358617819,1745312455074,-1000000.0,0.0006,120]
[358617820,1745312455122,-1000000.0,0.0006,120]
[358617821,1745312455169,-1000000.0,0.0006,120]
[358617822,1745312455215,-63846.29,0.0006,60]
[358617823,1745312455255,-19901.43,0.00060273,120]
[358617824,1745312455297,-3656.72,0.00060273,120]
[358617825,1745312455339,-1331.19,0.00060273,120]
[358617826,1745312455383,-19901.43,0.00060547,120]
[358617827,1745312455426,-1084.97,0.00060547,120]
[358617828,1745312455468,-3656.72,0.00060547,120]
[358617829,1745312455510,-1331.19,0.00060547,120]
[358617830,1745312455551,-19901.43,0.00060821,120]
[358617831,1745312455591,-3656.72,0.00060821,120]
[358617832,1745312455634,-1331.19,0.00060821,120]
[358617833,1745312455677,-151.0,0.0006086,120]
[358617834,1745312455728,-270.909815,0.0006086,120]
[358617835,1745312455770,-151.0,0.00060878,120]
[358617836,1745312455812,-151.0,0.00060878,120]
[358617837,1745312455853,-200.0,0.000609,120]
[358617838,1745312455900,-200.0,0.000609,120]
[358617839,1745312455941,-200.0,0.000609,120]
[358617840,1745312455984,-151.0,0.00060976,120]
[358617841,1745312456028,-19901.59,0.00061095,120]
[358617842,1745312456069,-3656.76027824,0.00061095,120]
[358617843,1745312456114,-1331.34280464,0.00061095,120]
[358617844,1745312456160,-1084.97,0.00061369,120]
[358617845,1745312456206,-158.78,0.000617,60]
[358617846,1745312456250,-200.0,0.000619,120]
[358617847,1745312456293,-200.0,0.000619,120]
[358617848,1745312456333,-200.0,0.000619,120]
[358617849,1745312456374,-1084.97,0.00062191,120]
[358617850,1745312456419,-1113.17689634,0.000625,120]
[358617851,1745312459562,-998886.82310366,0.000625,120]
[358617852,1745312459616,-1000000.0,0.000625,120]
[358617853,1745312459665,-1000000.0,0.000625,120]
[358617854,1745312459713,-1000000.0,0.000625,120]
[358617855,1745312459762,-1113.17689634,0.000625,120]
[358617856,1745312464049,-238.09915532,0.00059999,120]
[358617857,1745312464110,-998886.82310366,0.000625,120]
[358617858,1745312464164,-1000000.0,0.000625,120]
[358617859,1745312464217,-1000000.0,0.000625,120]
[358617860,1745312464266,-63846.29,0.000625,60]
[358617861,1745312464328,-151.0,0.000625,120]
[358617862,1745312464378,-200.0,0.000629,120]
[358617863,1745312464426,-200.0,0.000629,120]
[358617864,1745312464473,-200.0,0.000629,120]
[358617865,1745312464521,-1084.97,0.00063013,120]
[358617866,1745312464571,-1084.97,0.00063835,120]
[358617867,1745312464797,-200.0,0.000639,120]
[358617868,1745312464861,-200.0,0.000639,120]
[358617869,1745312464913,-200.0,0.000639,120]
[358617870,1745312464962,-1084.97,0.00064657,120]
[358617871,1745312465014,-200.0,0.000649,120]
[358617872,1745312465061,-200.0,0.000649,120]
[358617873,1745312465374,-200.0,0.000649,120]
[358617874,1745312465431,-931822.87774102,0.00065,120]
[358617875,1745312469268,-651.68,0.00054794,120]
[358617876,1745312469317,-651.68,0.00055068,120]
[358617877,1745312469365,-651.68,0.00055342,120]
[358617878,1745312469411,-651.68,0.00055616,120]
[358617879,1745312469458,-651.68,0.0005589,120]
[358617880,1745312469504,-651.68,0.00056164,120]
[358617881,1745312469551,-651.68,0.00056438,120]
[358617882,1745312469596,-651.68,0.00056712,120]
[358617883,1745312469641,-651.68,0.00056986,120]
[358617884,1745312469700,-68177.12225898,0.00065,120]
[358617885,1745312469746,-1000000.0,0.00065,120]
[358617886,1745312469792,-1000000.0,0.00065,120]
[358617887,1745312469837,-1000000.0,0.00065,120]
[358617888,1745312469882,-925957.75774102,0.00065,120]
[358617889,1745312473810,-651.68,0.0005726,120]
[358617890,1745312473859,-651.68,0.00057534,120]
[358617891,1745312473907,-651.68,0.00057808,120]
[358617892,1745312473954,-651.68,0.00058082,120]
[358617893,1745312474003,-651.68,0.00058356,120]
[358617894,1745312474053,-651.68,0.0005863,120]
[358617895,1745312474102,-651.68,0.00058904,120]
[358617896,1745312474153,-651.68,0.00059178,120]
[358617897,1745312474202,-651.68,0.00059452,120]
[358617898,1745312474252,-651.68,0.00059726,120]
[358617899,1745312474303,-651.68,0.00059999,120]
[358617900,1745312474354,-1000000.0,0.0006,120]
[358617901,1745312474398,-651.68,0.00060273,120]
[358617902,1745312474446,-651.68,0.00060547,120]
[358617903,1745312474494,-651.68,0.00060821,120]
[358617904,1745312474542,-651.80407387,0.00061095,120]
[358617905,1745312474596,-74042.24225898,0.00065,120]
[358617906,1745312474641,-1000000.0,0.00065,120]
[358617907,1745312474685,-1000000.0,0.00065,120]
[358617908,1745312474729,-916182.43366715,0.00065,120]
[358617909,1745312477302,-500.0,0.00054794,120]
[358617910,1745312477346,-500.0,0.00055068,120]
[358617911,1745312477389,-500.0,0.00055342,120]
[358617912,1745312477434,-500.0,0.00055616,120]
[358617913,1745312477481,-500.0,0.0005589,120]
[358617914,1745312477537,-500.0,0.00056164,120]
[358617915,1745312477583,-500.0,0.00056438,120]
[358617916,1745312477643,-83817.56633285,0.00065,120]
[358617917,1745312477690,-1000000.0,0.00065,120]
[358617918,1745312477735,-1000000.0,0.00065,120]
[358617919,1745312477782,-1000000.0,0.00065,120]
[358617920,1745312477829,-470000.0,0.00065,120]
[358617921,1745312477878,-1084.97,0.00065479,120]
[358617922,1745312477924,-600.0,0.00065753,120]
[358617923,1745312477969,-600.0,0.00065753,120]
[358617924,1745312478019,-600.0,0.00065753,120]
[358617925,1745312478066,-600.0,0.00065753,120]
[358617926,1745312478113,-600.0,0.00065753,120]
[358617927,1745312478158,-600.0,0.00065753,120]
[358617928,1745312478205,-200.0,0.000659,120]
[358617929,1745312478253,-200.0,0.000659,120]
[358617930,1745312478300,-200.0,0.000659,120]
[358617931,1745312478352,-437397.46366715,0.00066,120]
[358617953,1745313037565,-348.91784828,0.000198,2]
[358617954,1745313037670,-286.39015953,0.000198,2]
[358617955,1745313037683,-1618.83368686,0.000198,2]
[358617956,1745313037694,-1094.93,0.00019824,2]
[358617957,1745313037705,-300.0,0.00019899,2]
[358617958,1745313037717,-17301.9415,0.000199,2]
[358617959,1745313037728,-4159.4731,0.000199,2]
[358617960,1745313037740,-1408.92056096,0.000199,2]
[358617961,1745313037754,-7723.34636464,0.000199,2]
[358617962,1745313037772,-549.87216272,0.000199,2]
[358617963,1745313037800,-641.17075531,0.000199,2]
[358617964,1745313037943,-936.04396637,0.000199,2]
[358617989,1745313039820,-70754.8308043,0.000199,2]
[358617990,1745313039831,-10654.0,0.00019945,2]
[358617991,1745313039841,-500.0,0.00019973,2]
[358617992,1745313039852,-3906485.85534377,0.0002,2]
[358617993,1745313039863,-1034365.46753629,0.0002,2]
[358617994,1745313041231,-11397.90000016,0.0002,2]
[358617995,1745313041283,-129612.07589273,0.0002,2]
[358617996,1745313041495,-417.90709833,0.0002,2]
[358618017,1745313042608,-500.0,0.0002,2]
[358618032,1745313043231,-180852.64483164,0.0002,2]
[358618033,1745313043248,-1665578.56808108,0.0002,2]
[358618034,1745313043276,-851.35530241,0.0002,2]
[358618044,1745313045502,-500.0,0.0002,2]
[358618046,1745313046140,-11874.4697873,0.0002,2]
[358618047,1745313046161,-1039503.37069002,0.0002,2]
[358618053,1745314021203,1300.0,0.000192,7]
[358618054,1745314023300,2700.0,0.000193,7]
[358618055,1745314025456,4000.0,0.000194,7]
[358618056,1745314027543,5400.0,0.000195,7]
[358618062,1745314171158,300.0,0.000192,7]
[358618063,1745314173290,600.0,0.000193,7]
[358618064,1745314175444,900.0,0.000194,7]
[358618065,1745314177560,1300.0,0.000195,7]
[358618066,1745314207242,199.43,0.000265,30]
[358618074,1745314231859,-1466.280705,0.00019402,2]
[358618076,1745314231870,-995.38984353,0.000195,2]
[358618078,1745314231880,-995.38984352,0.00019571,2]
[358618080,1745314231889,-230.94596709,0.00019599,2]
[358618682,1745314237894,-719.05403291,0.00019599,2]
[358618684,1745314237904,-300.0,0.00019599,2]
[358618686,1745314237914,-300.0,0.00019599,2]
[358618688,1745314237924,-243.077,0.000196,2]
[358618690,1745314237934,-6700.0,0.000196,7]
[358618692,1745314237943,-1600.0,0.000196,7]
[358618694,1745314237953,-1040.18,0.00019671,2]
[358618696,1745314237963,-1300.0,0.000197,7]
[358618698,1745314237973,-300.0,0.000197,7]